bitfinex-derivatives/quotes_BTCF0:USTF0_20240817
["timestamp","ask_amount","ask_price","bid_price","bid_amount"]
[1723918175175,0.334107,59414.0,59413.0,0.13263906]
[1723918175561,0.334107,59414.0,59413.0,0.06536052]
[1723918176258,0.184107,59414.0,59413.0,0.06536052]
[1723918176579,0.091107,59414.0,59413.0,0.13263906]
[1723918176873,0.091107,59414.0,59413.0,0.06536052]
[1723918177372,0.091107,59414.0,59413.0,0.13267354]
[1723918177868,0.091107,59414.0,59413.0,0.13267382]
[1723918178274,0.091107,59414.0,59413.0,0.06536052]
[1723918179366,0.091107,59414.0,59413.0,0.13267736]
[1723918179560,0.091107,59414.0,59413.0,0.06536052]
[1723918181167,0.344107,59414.0,59413.0,0.06536052]
[1723918181470,0.344107,59414.0,59413.0,0.00225252]
[1723918181861,0.831121,59414.0,59413.0,0.00225252]
[1723918195873,0.470321,59414.0,59413.0,0.00225252]
[1723918196468,0.251107,59414.0,59413.0,0.00225252]
[1723918198079,0.091107,59414.0,59413.0,0.06536052]
[1723918198284,0.091107,59414.0,59413.0,0.11586095]
[1723918198676,0.091107,59414.0,59413.0,0.06536052]
[1723918199076,0.091107,59414.0,59413.0,0.11586095]
[1723918199485,0.184107,59414.0,59413.0,0.06536052]
[1723918204885,0.091107,59414.0,59413.0,0.06536052]
[1723918205197,0.091107,59414.0,59413.0,0.15836052]
[1723918205584,0.028,59414.0,59413.0,0.15836052]
[1723918208184,0.028,59414.0,59413.0,0.19540229]
[1723918208382,0.028,59414.0,59413.0,0.26272377]
[1723918209389,0.028,59414.0,59413.0,0.225682]
[1723918209595,0.028,59414.0,59413.0,0.26272292]
[1723918209778,0.028,59414.0,59413.0,0.15836052]
[1723918210782,0.028,59414.0,59413.0,0.2997646]
[1723918211992,0.028,59414.0,59413.0,0.3628726]
[1723918212488,0.00025252,59424.0,59417.0,0.063104]
[1723918212696,0.00025252,59424.0,59423.0,0.156097]
[1723918213195,0.24325252,59424.0,59420.0,0.05041788]
[1723918213382,0.063103,59418.0,59417.0,0.05040139]
[1723918213586,0.063106,59415.0,59414.0,0.11350839]
[1723918213880,0.156106,59415.0,59414.0,0.11350839]
[1723918216488,0.156106,59415.0,59414.0,0.063107]
[1723918216687,0.157106,59415.0,59414.0,0.063107]
[1723918217391,0.156106,59415.0,59414.0,0.063107]
[1723918217593,0.16810756,59415.0,59414.0,0.063107]
[1723918224595,0.07510756,59415.0,59414.0,0.063107]
[1723918236501,0.16810756,59415.0,59414.0,0.063107]
[1723918236699,0.063107,59414.0,59413.0,0.00025252]
[1723918237602,0.126214,59414.0,59413.0,0.00025252]
[1723918237799,0.063107,59414.0,59413.0,0.00025252]
[1723918238402,0.064107,59414.0,59413.0,0.00025252]
[1723918238904,0.064107,59414.0,59413.0,0.06747637]
[1723918239104,0.064107,59414.0,59413.0,0.00025252]
[1723918239301,0.064107,59414.0,59413.0,0.06336052]
[1723918239509,0.064107,59414.0,59413.0,0.13058437]
[1723918239908,0.064107,59414.0,59413.0,0.20466941]
[1723918241398,0.065107,59414.0,59413.0,0.20466941]
[1723918242802,0.003,59414.0,59413.0,0.09190749]
[1723918244313,0.003,59414.0,59413.0,0.15501549]
[1723918245107,0.003,59414.0,59413.0,0.13744556]
[1723918247709,0.003,59414.0,59413.0,0.10040267]
[1723918249312,0.003,59414.0,59413.0,0.13744484]
[1723918250712,0.003,59414.0,59413.0,0.10040267]
[1723918250911,0.003,59414.0,59413.0,0.06336052]
[1723918251716,0.003,59414.0,59413.0,0.10040253]
[1723918253619,0.003,59414.0,59413.0,0.10040236]
[1723918256715,0.003,59414.0,59413.0,0.16351036]
[1723918256921,0.3608,59421.0,59420.0,0.063101]
[1723918257119,0.06334952,59424.0,59423.0,0.063097]
[1723918257415,0.07343775,59424.0,59423.0,0.156097]
[1723918257808,0.07343775,59424.0,59423.0,0.19313459]
[1723918258007,0.07343775,59424.0,59423.0,0.23017218]
[1723918258210,0.07343775,59424.0,59423.0,0.156097]
[1723918259231,0.07343775,59424.0,59423.0,0.063097]
[1723918259819,0.16643775,59424.0,59423.0,0.063097]
[1723918260508,0.16643775,59424.0,59423.0,0.065097]
[1723918260908,0.16643775,59424.0,59423.0,0.11554597]
[1723918261114,0.16643775,59424.0,59423.0,0.11554498]
[1723918261115,0.07343775,59424.0,59423.0,0.11554498]
[1723918261424,0.07343775,59424.0,59423.0,0.065097]
[1723918261823,0.07343775,59424.0,59423.0,0.1155447]
[1723918262121,0.07343775,59424.0,59423.0,0.065097]
[1723918262725,0.01034075,59424.0,59423.0,0.158097]
[1723918262913,0.00025252,59424.0,59423.0,0.158097]
[1723918264024,0.06334852,59424.0,59423.0,0.158097]
[1723918286329,0.06334852,59424.0,59423.0,0.22542657]
[1723918287141,0.06334852,59424.0,59423.0,0.158097]
[1723918289335,0.3608,59429.0,59423.0,0.158097]
[1723918289336,0.3608,59429.0,59428.0,0.063092]
[1723918289545,0.43380025,59429.0,59428.0,0.156092]
[1723918290441,0.00990925,59429.0,59428.0,0.157092]
[1723918290743,0.00025252,59434.0,59433.0,0.063087]
[1723918290947,0.00025252,59434.0,59433.0,0.156087]
[1723918291945,0.00025252,59434.0,59433.0,0.157087]
[1723918292352,0.00025252,59434.0,59433.0,0.158087]
[1723918297756,0.00025252,59434.0,59433.0,0.157087]
[1723918297957,0.00025252,59434.0,59433.0,0.158087]
[1723918305855,0.13434726,59434.0,59433.0,0.158087]
[1723918308569,0.00025252,59434.0,59433.0,0.158087]
[1723918313057,0.00025252,59434.0,59433.0,0.065087]
[1723918313365,0.13434726,59434.0,59433.0,0.002]
[1723918313761,0.00025252,59434.0,59433.0,0.002]
[1723918314155,0.06333852,59434.0,59433.0,0.002]
[1723918315567,0.28642452,59434.0,59433.0,0.002]
[1723918315871,0.12642452,59434.0,59433.0,0.002]
[1723918316061,0.78118452,59434.0,59433.0,0.002]
[1723918316263,0.21333852,59434.0,59433.0,0.002]
[1723918316457,0.71809852,59434.0,59433.0,0.002]
[1723918317060,0.21333852,59434.0,59433.0,0.002]
[1723918318670,0.57413852,59434.0,59433.0,0.002]
[1723918319070,0.66713852,59434.0,59433.0,0.002]
[1723918321769,0.30633852,59434.0,59433.0,0.002]
[1723918321969,0.66713852,59434.0,59433.0,0.002]
[1723918322364,0.42413852,59434.0,59433.0,0.002]
[1723918323667,0.46533072,59434.0,59433.0,0.002]
[1723918325862,0.61533072,59434.0,59433.0,0.002]
[1723918326475,0.57413852,59434.0,59433.0,0.002]
[1723918326662,0.21333852,59434.0,59433.0,0.002]
[1723918326976,0.57413852,59434.0,59433.0,0.002]
[1723918327779,0.21333852,59434.0,59433.0,0.002]
[1723918327964,0.57413852,59434.0,59433.0,0.002]
[1723918329079,0.21333852,59434.0,59433.0,0.002]
[1723918329272,0.57413852,59434.0,59433.0,0.002]
[1723918333178,0.42413852,59434.0,59433.0,0.065087]
[1723918333372,0.42413852,59434.0,59433.0,0.112287]
[1723918333980,0.42413852,59434.0,59433.0,0.0492]
[1723918335581,0.06333852,59434.0,59433.0,0.0492]
[1723918338569,0.15633852,59434.0,59433.0,0.0492]
[1723918339081,0.00025252,59434.0,59433.0,0.205287]
[1723918339283,0.00025252,59434.0,59433.0,0.24231848]
[1723918340481,0.00025252,59434.0,59433.0,0.205287]
[1723918340989,0.00025252,59434.0,59433.0,0.21514496]
[1723918341783,0.00025252,59434.0,59433.0,0.78299196]
[1723918342287,0.00025252,59434.0,59433.0,0.85029555]
[1723918342487,0.00025252,59434.0,59433.0,1.25029555]
[1723918342671,0.00025252,59434.0,59433.0,1.18299196]
[1723918343283,0.00025252,59434.0,59433.0,0.78299196]
[1723918343482,0.23564,59443.0,59442.0,0.063077]
[1723918343785,0.063074,59445.0,59443.0,0.063076]
[1723918343974,0.40198601,59444.0,59443.0,0.160676]
[1723918344183,0.56976666,59444.0,59443.0,0.209276]
[1723918344488,0.40198601,59444.0,59443.0,0.209276]
[1723918345276,0.40198601,59444.0,59443.0,0.210276]
[1723918345785,0.40198601,59444.0,59443.0,0.211276]
[1723918346479,0.41219472,59444.0,59443.0,0.211276]
[1723918346681,0.05162366,59448.0,59443.0,0.211276]
[1723918346682,0.063071,59448.0,59447.0,0.063071]
[1723918346882,0.00025252,59449.0,59448.0,0.063071]
[1723918347076,0.04117899,59455.0,59454.0,0.063065]
[1723918347279,0.041174,59460.0,59459.0,0.063059]
[1723918347585,0.063058,59460.0,59459.0,0.093]
[1723918348482,0.3608,59461.0,59459.0,0.157058]
[1723918349578,0.3608,59461.0,59459.0,0.158058]
[1723918350091,0.3608,59461.0,59460.0,0.063058]
[1723918351484,0.4538,59461.0,59459.0,0.002]
[1723918351784,0.516857,59461.0,59460.0,0.001]
[1723918351976,0.562357,59461.0,59460.0,0.002]
[1723918352582,0.562357,59461.0,59460.0,0.001]
[1723918353594,0.562357,59461.0,59460.0,0.002]
[1723918354288,0.562357,59461.0,59460.0,0.001]
[1723918354981,0.562357,59461.0,59460.0,0.002]
[1723918355789,0.469357,59461.0,59460.0,0.002]
[1723918356092,0.562357,59461.0,59460.0,0.002]
[1723918356302,1.92462,59461.0,59454.0,0.0002523]
[1723918356483,0.4538,59455.0,59454.0,0.0002523]
[1723918357092,0.583863,59455.0,59454.0,0.0002523]
[1723918357387,0.063069,59450.0,59449.0,0.093]
[1723918357585,0.063069,59450.0,59447.0,0.063071]
[1723918358192,0.4538,59448.0,59443.0,0.156076]
[1723918358381,0.4538,59448.0,59443.0,0.063076]
[1723918358382,0.063074,59445.0,59443.0,0.063076]
[1723918359699,0.063075,59444.0,59443.0,0.063076]
[1723918361199,0.063075,59444.0,59443.0,0.064076]
[1723918361995,0.064075,59444.0,59443.0,0.064076]
[1723918362297,0.065075,59444.0,59443.0,0.064076]
[1723918362698,0.065075,59444.0,59443.0,0.157076]
[1723918363188,0.065075,59444.0,59443.0,0.064076]
[1723918363385,0.065075,59444.0,59443.0,0.001]
[1723918364100,0.065075,59444.0,59443.0,0.064076]
[1723918370901,0.425875,59444.0,59443.0,0.064076]
[1723918372106,0.065075,59444.0,59443.0,0.064076]
[1723918372303,0.425875,59444.0,59443.0,0.064076]
[1723918373201,0.065075,59444.0,59443.0,0.064076]
[1723918373510,0.425875,59444.0,59443.0,0.064076]
[1723918376409,0.065075,59444.0,59443.0,0.064076]
[1723918381508,0.065075,59444.0,59443.0,0.157076]
[1723918384702,0.065075,59444.0,59443.0,0.064076]
[1723918389120,0.065075,59444.0,59443.0,0.1313143]
[1723918390813,0.065075,59444.0,59443.0,0.064076]
[1723918391017,0.065075,59444.0,59443.0,0.1145558]
[1723918392921,0.065075,59444.0,59443.0,0.064076]
[1723918395728,0.065075,59444.0,59443.0,0.157076]
[1723918405623,0.065075,59444.0,59443.0,0.2243143]
[1723918406229,0.065075,59444.0,59443.0,0.26134052]
[1723918406935,0.065075,59444.0,59443.0,0.157076]
[1723918407139,0.065075,59444.0,59443.0,0.26134052]
[1723918408427,0.065075,59444.0,59443.0,0.2243143]
[1723918409026,0.002,59444.0,59443.0,0.2243143]
[1723918409422,0.002,59444.0,59443.0,0.76185785]
[1723918409628,0.002,59444.0,59443.0,1.29000842]
[1723918409839,0.002,59444.0,59443.0,1.32703064]
[1723918410342,0.0002523,59451.0,59450.0,0.063069]
[1723918410532,0.0002523,59451.0,59450.0,0.156069]
[1723918411136,0.0002523,59451.0,59450.0,0.250069]
[1723918411929,0.0002523,59451.0,59450.0,1.21559951]
[1723918412439,0.07302756,59459.0,59458.0,0.06306]
[1723918413041,0.00996756,59459.0,59458.0,0.11186]
[1723918413234,0.423854,59464.0,59463.0,0.063055]
[1723918414435,0.3608,59464.0,59463.0,0.063055]
[1723918414631,0.3608,59464.0,59463.0,0.160955]
[1723918415837,0.07325727,59466.0,59464.0,0.063053]
[1723918416044,0.3608,59465.0,59463.0,0.0979]
[1723918416242,0.3608,59465.0,59463.0,0.0989]
[1723918416541,0.3608,59464.0,59463.0,0.161955]
[1723918417047,0.3608,59464.0,59463.0,0.160955]
[1723918417545,0.063052,59466.0,59464.0,0.063053]
[1723918417843,0.063052,59466.0,59465.0,0.093]
[1723918418151,0.423852,59466.0,59465.0,0.093]
[1723918420035,0.423852,59466.0,59465.0,0.094]
[1723918420231,0.423852,59466.0,59465.0,0.095]
[1723918421740,0.063052,59466.0,59465.0,0.095]
[1723918421939,0.423852,59466.0,59465.0,0.095]
[1723918422932,0.423852,59466.0,59465.0,0.158053]
[1723918427150,0.063052,59466.0,59465.0,0.158053]
[1723918427452,0.423852,59466.0,59465.0,0.158053]
[1723918427650,0.063052,59466.0,59465.0,0.158053]
[1723918427836,0.423852,59466.0,59465.0,0.158053]
[1723918429043,0.423852,59466.0,59465.0,0.002]
[1723918429247,0.516852,59466.0,59465.0,0.002]
[1723918433847,0.423852,59466.0,59465.0,0.002]
[1723918439658,0.59163265,59466.0,59465.0,0.002]
[1723918440146,0.23083265,59466.0,59465.0,0.002]
[1723918440349,0.59163265,59466.0,59465.0,0.002]
[1723918440556,0.423852,59466.0,59465.0,0.002]
[1723918444164,0.063052,59466.0,59465.0,0.002]
[1723918447458,0.063052,59466.0,59465.0,0.110753]
[1723918447658,0.063052,59466.0,59465.0,0.158653]
[1723918448162,0.0002523,59469.0,59465.0,0.1458857]
[1723918448364,0.0002523,59469.0,59468.0,0.42385]
[1723918449164,0.3608,59479.0,59478.0,0.063039]
[1723918449358,0.3608,59479.0,59478.0,0.20644578]
[1723918449558,0.3608,59479.0,59478.0,0.156039]
[1723918450374,0.37106498,59479.0,59478.0,0.20644578]
[1723918450560,0.3608,59479.0,59478.0,0.156039]
[1723918450963,0.3608,59479.0,59478.0,0.251839]
[1723918451961,0.3608,59479.0,59478.0,0.252839]
[1723918453068,0.01012866,59482.0,59480.0,0.063036]
[1723918453374,0.3608,59481.0,59480.0,0.063036]
[1723918454668,0.3608,59481.0,59480.0,0.064036]
[1723918455260,0.07315865,59483.0,59481.0,0.063036]
[1723918455570,0.07315865,59483.0,59482.0,0.093]
[1723918457378,0.07315865,59483.0,59482.0,0.157035]
[1723918458174,0.07315865,59483.0,59482.0,0.158035]
[1723918461075,0.01012465,59483.0,59482.0,0.158035]
[1723918461270,0.0002523,59484.0,59483.0,0.063034]
[1723918462565,0.0002523,59484.0,59483.0,0.064034]
[1723918463572,0.0002523,59484.0,59483.0,0.127068]
[1723918463881,0.0002523,59484.0,59483.0,1.0929052]
[1723918464074,0.0002523,59484.0,59483.0,1.04249842]
[1723918464262,0.0002523,59484.0,59483.0,1.04149842]
[1723918464462,0.0002523,59484.0,59483.0,1.09272842]
[1723918464873,0.0002523,59484.0,59483.0,1.09072842]
[1723918465069,0.0002523,59484.0,59483.0,1.09272842]
[1723918465267,0.3608,59486.0,59485.0,0.063032]
[1723918465485,0.3608,59486.0,59485.0,0.156032]
[1723918465665,0.3608,59486.0,59485.0,0.660352]
[1723918466266,0.3608,59489.0,59485.0,0.59732]
[1723918466471,0.3608,59489.0,59488.0,0.156029]
[1723918467777,0.3608,59489.0,59488.0,0.157029]
[1723918468782,0.3608,59489.0,59488.0,0.158029]
[1723918470180,0.00016558,59491.0,59490.0,0.063026]
[1723918470476,0.36096558,59491.0,59490.0,0.063026]
[1723918471376,0.36096558,59491.0,59490.0,0.065026]
[1723918472179,0.00016558,59491.0,59490.0,0.065026]
[1723918472376,0.36096558,59491.0,59490.0,0.065026]
[1723918472774,0.00016558,59491.0,59490.0,0.065026]
[1723918472973,0.36096558,59491.0,59490.0,0.065026]
[1723918474273,0.42399058,59491.0,59490.0,0.065026]
[1723918474479,0.48701558,59491.0,59490.0,0.002]
[1723918474679,0.06303,59487.0,59486.0,0.06303]
[1723918475388,0.06303,59487.0,59486.0,0.15603]
[1723918476181,0.06303,59487.0,59486.0,0.15703]
[1723918477577,0.06403,59487.0,59486.0,0.15803]
[1723918479785,0.06403,59487.0,59486.0,0.16784537]
[1723918481294,0.06403,59487.0,59486.0,0.15803]
[1723918483998,0.43472725,59487.0,59486.0,0.15803]
[1723918486785,0.42483,59487.0,59486.0,0.15803]
[1723918489788,0.06403,59487.0,59486.0,0.15803]
[1723918493002,0.06403,59487.0,59486.0,0.06503]
[1723918493199,0.06403,59487.0,59486.0,0.15803]
[1723918495298,0.001,59487.0,59486.0,0.15803]
[1723918500705,0.001,59487.0,59486.0,0.22523904]
[1723918501406,0.001,59487.0,59486.0,0.15803]
[1723918501605,0.001,59487.0,59486.0,0.06503]
[1723918507505,0.001,59487.0,59486.0,0.15803]
[1723918512503,0.001,59487.0,59486.0,0.22526502]
[1723918514212,0.001,59487.0,59486.0,0.26226365]
[1723918514403,0.06403,59487.0,59486.0,0.15803]
[1723918515619,0.42483,59487.0,59486.0,0.15803]
[1723918515803,0.3618,59487.0,59486.0,0.15803]
[1723918516003,0.3618,59487.0,59486.0,0.22526502]
[1723918516199,0.3618,59487.0,59486.0,0.15803]
[1723918516419,0.3618,59487.0,59486.0,0.19502908]
[1723918516619,0.3618,59487.0,59486.0,0.23202767]
[1723918517816,0.001,59487.0,59486.0,0.23202767]
[1723918520218,0.001,59487.0,59486.0,0.13902767]
[1723918520427,0.001,59487.0,59486.0,0.19502908]
[1723918520714,0.001,59487.0,59486.0,0.15803]
[1723918523008,0.001,59487.0,59486.0,0.22526464]
[1723918523613,0.001,59487.0,59486.0,0.15803]
[1723918530023,0.063041,59478.0,59468.0,0.41122604]
[1723918530218,0.063041,59478.0,59463.0,0.063054]
[1723918530219,0.156041,59478.0,59477.0,0.06304]
[1723918530915,0.3608,59479.0,59478.0,0.063039]
[1723918531319,0.063036,59481.0,59480.0,0.063037]
[1723918531524,0.063036,59481.0,59480.0,0.156037]
[1723918531726,0.063036,59481.0,59480.0,0.23003875]
[1723918532916,0.065036,59481.0,59480.0,0.23103875]
[1723918533132,0.065036,59481.0,59480.0,0.157037]
[1723918533428,0.065036,59481.0,59480.0,0.23103556]
[1723918534015,0.068036,59481.0,59480.0,0.23203556]
[1723918535535,0.068036,59481.0,59480.0,0.19503628]
[1723918536533,0.068036,59481.0,59480.0,0.158037]
[1723918537030,0.068036,59481.0,59480.0,0.22523429]
[1723918543442,0.068036,59481.0,59480.0,0.19503744]
[1723918544039,0.068036,59481.0,59480.0,0.2252283]
[1723918544229,0.068036,59481.0,59480.0,0.158037]
[1723918548534,0.068036,59481.0,59480.0,0.19503922]
[1723918549332,0.068036,59481.0,59480.0,0.158037]
[1723918549533,0.068036,59481.0,59480.0,0.19503922]
[1723918549829,0.068036,59481.0,59480.0,0.158037]
[1723918550145,0.068036,59481.0,59480.0,0.19503922]
[1723918550638,0.068036,59481.0,59480.0,0.158037]
[1723918553733,0.068036,59481.0,59480.0,0.2252283]
[1723918558648,0.068036,59481.0,59480.0,0.158037]
[1723918563438,0.161036,59481.0,59480.0,0.002]
[1723918565247,0.161036,59481.0,59480.0,0.065037]
[1723918566940,0.161036,59481.0,59480.0,0.002]
[1723918567841,0.068036,59481.0,59480.0,0.002]
[1723918568045,0.068036,59481.0,59480.0,0.065037]
[1723918568855,0.068036,59481.0,59480.0,0.13227782]
[1723918569057,0.068036,59481.0,59480.0,0.22527782]
[1723918569950,0.068036,59481.0,59480.0,0.158037]
[1723918571343,0.005,59481.0,59480.0,0.158037]
[1723918571545,0.00016558,59491.0,59481.0,0.063036]
[1723918571743,0.00016558,59491.0,59490.0,0.22325946]
[1723918572052,0.00016558,59491.0,59490.0,0.156026]
[1723918572250,0.00016558,59491.0,59490.0,0.22325687]
[1723918572447,0.00016558,59491.0,59490.0,0.156026]
[1723918572849,0.00216558,59491.0,59490.0,0.22325687]
[1723918573247,0.00416558,59491.0,59490.0,0.22425687]
[1723918573552,0.00416558,59491.0,59490.0,0.158026]
[1723918574751,0.00416558,59491.0,59490.0,0.20838903]
[1723918575146,0.00416558,59491.0,59490.0,0.20838782]
[1723918575347,0.00416558,59491.0,59490.0,0.22525687]
[1723918575857,0.00416558,59491.0,59490.0,0.158026]
[1723918576247,0.00416558,59491.0,59490.0,0.16824651]
[1723918576442,0.00216558,59491.0,59490.0,0.16824651]
[1723918576647,0.00216558,59491.0,59490.0,0.23535189]
[1723918576847,0.00216558,59491.0,59490.0,0.16824651]
[1723918576848,0.00016558,59491.0,59490.0,0.16824651]
[1723918577665,0.00016558,59491.0,59490.0,0.52904651]
[1723918578360,0.00016558,59491.0,59490.0,0.59207251]
[1723918580656,0.00016558,59491.0,59490.0,1.49635251]
[1723918580956,0.00016558,59491.0,59490.0,1.53334546]
[1723918581150,0.00016558,59491.0,59490.0,1.49635251]
[1723918581350,0.00016558,59491.0,59490.0,1.09635251]
[1723918583154,0.00016558,59491.0,59490.0,0.73555251]
[1723918583347,0.3608,59499.0,59498.0,0.063018]
[1723918583553,0.3608,59499.0,59498.0,0.156018]
[1723918584863,0.3608,59499.0,59498.0,0.157018]
[1723918585460,0.063015,59501.0,59499.0,0.063016]
[1723918585663,0.3608,59500.0,59499.0,0.063016]
[1723918586955,0.063015,59501.0,59499.0,0.063016]
[1723918587155,0.3608,59500.0,59499.0,0.064017]
[1723918587849,0.3608,59500.0,59499.0,0.065017]
[1723918588049,0.063015,59501.0,59500.0,0.063016]
[1723918588254,0.423815,59501.0,59500.0,0.063016]
[1723918589166,0.423815,59501.0,59500.0,0.064016]
[1723918589461,0.423815,59501.0,59500.0,0.065016]
[1723918589758,0.423815,59501.0,59500.0,0.002]
[1723918589759,0.516815,59501.0,59500.0,0.002]
[1723918592664,0.516815,59501.0,59500.0,0.065016]
[1723918596069,0.423815,59501.0,59500.0,0.065016]
[1723918596269,0.423815,59501.0,59500.0,0.158016]
[1723918598868,0.063015,59501.0,59500.0,0.158016]
[1723918599571,0.423815,59501.0,59500.0,0.158016]
[1723918604681,0.423815,59501.0,59500.0,0.002]
[1723918605777,0.063015,59501.0,59500.0,0.002]
[1723918605979,0.423815,59501.0,59500.0,0.002]
[1723918607075,0.423815,59501.0,59500.0,0.065016]
[1723918607472,0.063015,59501.0,59500.0,0.065016]
[1723918607672,0.423815,59501.0,59500.0,0.065016]
[1723918607881,0.063015,59501.0,59500.0,0.158016]
[1723918608083,0.423815,59501.0,59500.0,0.158016]
[1723918609080,0.063015,59501.0,59500.0,0.158016]
[1723918609577,0.423815,59501.0,59500.0,0.158016]
[1723918609971,0.423815,59501.0,59500.0,0.20844497]
[1723918611577,0.423815,59501.0,59500.0,0.11544497]
[1723918612983,0.063015,59501.0,59500.0,0.11544497]
[1723918613186,0.423815,59501.0,59500.0,0.11544497]
[1723918613978,0.423815,59501.0,59500.0,0.065016]
[1723918614575,0.063015,59501.0,59500.0,0.065016]
[1723918614776,0.063016,59500.0,59494.0,0.1436]
[1723918614975,0.063021,59495.0,59494.0,0.206621]
[1723918616476,0.063021,59495.0,59494.0,0.207621]
[1723918617375,0.064021,59495.0,59494.0,0.208621]
[1723918621991,0.064021,59495.0,59494.0,0.27572638]
[1723918625586,0.064021,59495.0,59494.0,0.208621]
[1723918627896,0.064021,59495.0,59494.0,0.2758537]
[1723918628484,0.264,59495.0,59494.0,0.05042543]
[1723918628784,0.264,59495.0,59493.0,0.0002523]
[1723918628785,0.126044,59494.0,59493.0,0.0002523]
[1723918628990,1.20266633,59494.0,59493.0,0.0002523]
[1723918629189,1.60266633,59494.0,59493.0,0.0002523]
[1723918630092,1.60266633,59494.0,59493.0,0.0012523]
[1723918630093,1.54064433,59494.0,59493.0,0.0012523]
[1723918631089,1.54164433,59494.0,59493.0,0.0022523]
[1723918631284,1.14164433,59494.0,59493.0,0.0022523]
[1723918631490,1.23464433,59494.0,59493.0,0.0022523]
[1723918631794,1.63464433,59494.0,59493.0,0.0022523]
[1723918631994,1.13040433,59494.0,59493.0,0.0022523]
[1723918632190,1.63464433,59494.0,59493.0,0.0022523]
[1723918632898,1.583062,59494.0,59493.0,0.0022523]
[1723918633705,1.183062,59494.0,59493.0,0.0022523]
[1723918633891,1.583062,59494.0,59493.0,0.0022523]
[1723918634992,1.63464449,59494.0,59493.0,0.0022523]
[1723918635396,1.23464449,59494.0,59493.0,0.0022523]
[1723918637197,1.183062,59494.0,59493.0,0.0022523]
[1723918639094,1.709106,59494.0,59493.0,0.0022523]
[1723918640694,0.063037,59480.0,59476.0,0.05042543]
[1723918640889,0.063031,59486.0,59473.0,0.156044]
[1723918640890,0.4538,59477.0,59473.0,0.14342543]
[1723918641095,0.093,59474.0,59473.0,0.093]
[1723918641296,0.156043,59474.0,59473.0,0.093]
[1723918641497,0.219086,59474.0,59473.0,0.093]
[1723918641703,0.063048,59470.0,59469.0,0.0487]
[1723918641897,0.156048,59470.0,59469.0,0.0487]
[1723918645293,0.157048,59470.0,59469.0,0.0487]
[1723918650000,0.517848,59470.0,59469.0,0.0487]
[1723918651209,0.063049,59469.0,59468.0,0.0002523]
[1723918651606,0.203049,59469.0,59468.0,0.0002523]
[1723918652094,0.563849,59469.0,59468.0,0.0002523]
[1723918652702,1.531378,59469.0,59468.0,0.0002523]
[1723918652898,1.531378,59469.0,59468.0,0.0012523]
[1723918653903,1.594427,59469.0,59468.0,0.0012523]
[1723918655013,1.606427,59469.0,59468.0,0.0022523]
[1723918655609,1.615427,59469.0,59468.0,0.0022523]
[1723918655809,1.622427,59469.0,59468.0,0.0022523]
[1723918656612,1.559378,59469.0,59468.0,0.0022523]
[1723918658016,1.198578,59469.0,59468.0,0.0022523]
[1723918658404,1.920178,59469.0,59468.0,0.0022523]
[1723918662607,1.559378,59469.0,59468.0,0.0022523]
[1723918663318,1.054898,59469.0,59468.0,0.0022523]
[1723918663519,1.559378,59469.0,59468.0,0.0022523]
[1723918664514,1.159378,59469.0,59468.0,0.0022523]
[1723918664712,1.559378,59469.0,59468.0,0.0022523]
[1723918666219,1.652378,59469.0,59468.0,0.0022523]
[1723918667922,1.291578,59469.0,59468.0,0.0022523]
[1723918668112,1.652378,59469.0,59468.0,0.0022523]
[1723918668519,1.147898,59469.0,59468.0,0.0022523]
[1723918668828,1.652378,59469.0,59468.0,0.0022523]
[1723918672028,1.291578,59469.0,59468.0,0.0022523]
[1723918672329,0.591849,59469.0,59468.0,0.0022523]
[1723918672627,0.684849,59469.0,59468.0,0.0022523]
[1723918672816,0.591849,59469.0,59468.0,0.0022523]
[1723918673022,0.591849,59469.0,59468.0,0.0653023]
[1723918673023,0.4818,59469.0,59468.0,0.0653023]
[1723918674028,0.028,59469.0,59468.0,0.47652773]
[1723918674321,0.028,59469.0,59468.0,0.9305823]
[1723918675827,0.093,59470.0,59469.0,0.063049]
[1723918676320,0.093,59470.0,59469.0,0.567529]
[1723918676928,0.093,59470.0,59469.0,0.61785748]
[1723918677732,0.093,59470.0,59469.0,0.11337748]
[1723918678044,0.093,59470.0,59469.0,0.063049]
[1723918678220,0.106,59470.0,59469.0,0.065049]
[1723918680128,0.106,59470.0,59469.0,0.12538995]
[1723918680722,0.106,59470.0,59469.0,0.07507904]
[1723918681330,0.106,59470.0,59469.0,0.12538751]
[1723918684132,0.013,59470.0,59469.0,0.21838751]
[1723918684327,0.013,59470.0,59469.0,0.16807904]
[1723918687236,0.013,59470.0,59469.0,1.13560804]
[1723918688223,0.013,59470.0,59469.0,1.07255904]
[1723918691530,0.013,59470.0,59469.0,1.43335904]
[1723918692438,0.013,59470.0,59469.0,1.07255904]
[1723918692635,0.093,59478.0,59477.0,0.06304]
[1723918693825,0.107,59478.0,59477.0,0.06404]
[1723918694138,0.014,59478.0,59477.0,0.06404]
[1723918695236,0.0002523,59479.0,59478.0,0.063039]
[1723918695430,0.0002523,59479.0,59478.0,0.219078]
[1723918696735,0.0032523,59479.0,59478.0,0.220078]
[1723918696936,0.0052523,59479.0,59478.0,0.221078]
[1723918697138,0.3242,59488.0,59487.0,0.06303]
[1723918698540,0.3262,59488.0,59487.0,0.06403]
[1723918698741,0.3332,59488.0,59487.0,0.06503]
[1723918699441,0.009,59488.0,59487.0,0.06503]
[1723918702336,0.009,59488.0,59487.0,0.07507521]
[1723918711042,0.102,59488.0,59487.0,0.06503]
[1723918720956,0.165029,59488.0,59487.0,0.06503]
[1723918723145,0.009,59488.0,59487.0,0.06503]
[1723918726250,0.009,59488.0,59487.0,0.13203844]
[1723918726560,0.18348203,59510.0,59487.0,0.13203844]
[1723918726561,0.06302,59496.0,59495.0,0.063021]
[1723918726858,0.07289183,59496.0,59495.0,0.063021]
[1723918728053,0.07789183,59496.0,59495.0,0.064021]